Cogmind - Beta 14 @@@ ROGUE MODE // 2024.12.21 @ 15:27:38 Player: Zoe Result: Destroyed by Y-45 Defender with Beam Rifle Performance ------------- Evolutions (1) 500 Regions Visited (3) 600 Robots Destroyed (29) 145 Value Destroyed (566) 566 Prototype IDs (1) 20 Alien Tech Used (0) 0 Bonus (27) 27 TOTAL SCORE: 1858 Bonus ------- High Alert Combat Kills 27 Cogmind --------- Core Integrity 0/400 Matter 37/300 Energy 100/100 System Corruption 0% Temperature Cool (27) Movement Core (1350) Ox26 Location -9/Materials Parts ------- > --- POWER (1) -------- (None) > --- PROPULSION (3) --- (None) > --- UTILITY (3) ------ Huge Storage Unit > --- WEAPON (2) ------- (None) > --- INVENTORY (25) --- Light Deuterium Engine Light Nuclear Core Improved Aluminum Leg Improved Aluminum Leg Improved Aluminum Leg Heat Sink Improved Terrain Scanner Shield Generator Grenade Launcher Grenade Launcher Grenade Launcher Grenade Launcher Rocket Launcher Peak State ------------ > --- POWER ------------ Fission Core > --- PROPULSION ------- Combat Airjet Combat Airjet > --- UTILITY ---------- Large Storage Unit Improved Terrain Scanner Armor Integrity Analyzer > --- WEAPON ----------- Grenade Launcher Rocket Launcher > --- INVENTORY -------- Light Deuterium Engine Light Nuclear Core Heat Sink Large Storage Unit Medium Laser Small Laser [Rating: 27] Favorites ----------- Power Fission Core Engine Ion Engine Power Core Fission Core Propulsion Improved Aluminum Leg Treads Light Treads Leg Improved Aluminum Leg Hover Unit Combat Airjet Utility Improved Terrain Scanner Device Improved Terrain Scanner Storage Large Storage Unit Processor Armor Integrity Analyzer Weapon EM Pulse Gun Energy Gun EM Pulse Gun Ballistic Gun Improved Assault Rifle Launcher Rocket Launcher Build | -11 -10 -10 -9 ------- Run | Yrd Mat Min Mat Slots Evolved 2 | . . . 2 Power . | . . . . Propulsion 1 | . . . 1 Utility 1 | . . . 1 Weapon . | . . . . Parts Attached 29 | 7 2 10 10 Power 5 | 1 1 3 . Engine 3 | 1 1 1 . Core 2 | . . 2 . Reactor . | . . . . Propulsion 7 | 2 . 2 3 Treads 2 | 2 . . . Leg 3 | . . . 3 Wheel . | . . . . Hover 2 | . . 2 . Flight . | . . . . Utility 9 | 2 1 2 4 Device 5 | 1 . 2 2 Storage 3 | 1 1 . 1 Processor 1 | . . . 1 Hackware . | . . . . Protection . | . . . . Artifact . | . . . . Weapon 8 | 2 . 3 3 Energy Gun 3 | 2 . 1 . Energy Cannon . | . . . . Ballistic Gun 2 | . . . 2 Ballistic Cannon . | . . . . Launcher 3 | . . 2 1 Special Weapon . | . . . . Impact Weapon . | . . . . Slashing Weapon . | . . . . Piercing Weapon . | . . . . Special Melee Weapon . | . . . . Unidentified Prototypes 1 | . . . 1 Parts Lost 11 | . . 4 7 Power 2 | . . 1 1 Propulsion 4 | . . 1 3 Utility 2 | . . . 2 Weapon 3 | . . 2 1 Highest Loss Streak 6 | . . 4 6 To Critical Strikes 1 | . . . 1 Average Slot Usage (%) 92 | . 100 95 85 Engine 5 | . 14 8 . Core 6 | . . 5 9 Treads 11 | . 28 16 . Leg 11 | . . . 27 Hover 3 | . . 9 . Device 12 | . 14 14 11 Storage 12 | . 14 14 11 Processor 3 | . . . 7 Energy Gun 11 | . 28 15 . Ballistic Gun 1 | . . . 2 Launcher 9 | . . 10 14 Peak Build Rating 27 | 9 10 23 27 Average Rating 15 | 5 9 14 20 On Entrance 10 | . 9 9 23 Naked Turns . | . . . . Heaviest Build 101 | 15 30 38 101 Greatest Support 40 | 40 40 40 39 Greatest Overweight (x) 30 | 1 . 1 30 Average Overweight (x) . | . . . 2 Largest Inventory Capacity 25 | 8 15 15 25 Average Capacity 18 | 7 14 15 24 Most Carried 13 | 5 8 9 13 Average Carried 7 | 1 3 7 10 Final Capacity 25 | 8 15 15 25 Final Carried 13 | 1 6 7 13 Class Distribution -------------------- 83% | Mutant 16% | Scavenger-Mutant Dominant Class ---------------- Mutant | -10/Materials Mutant | -10/Mines Mutant | -9/Materials Resources | -11 -10 -10 -9 ----------- Run | Yrd Mat Min Mat Matter Collected 654 | 260 30 232 132 Remotely . | . . . . Salvage Created 644 | 137 148 155 204 Parts 53 | 8 13 5 27 Haulers Intercepted 1 | . . . 1 Recyclers Shooed 1 | 1 . . . Parts Field Recycled . | . . . . Retrieved Matter . | . . . . Parts Self-Destructed . | . . . . Prevented . | . . . . Kills | -11 -10 -10 -9 ------- Run | Yrd Mat Min Mat Combat Hostiles Destroyed 27 | . 3 11 13 Guns 6 | . 3 3 . AOE 21 | . . 8 13 Classes Destroyed 10 | 2 1 3 4 Worker 1 | . . . 1 Builder 1 | . . 1 . Tunneler 3 | 2 . 1 . Hauler 1 | . . . 1 Recycler 2 | 1 . 1 . Watcher 2 | . . . 2 Swarmer 10 | . . 3 7 Grunt 8 | . 3 . 5 Sentry 1 | . . . 1 Assembled 8 | . . 8 . Best Kill Streak 6 | 2 2 6 6 Combat Bots Only 6 | . 2 6 6 Max Kills in Single Turn 5 | 1 1 5 4 Gunslinging . | . . . . Exploded 4 | . . 3 4 Melee . | . . . . Uniques/NPCs Destroyed . | . . . . Combat | -11 -10 -10 -9 -------- Run | Yrd Mat Min Mat Hostile Shots Fired 190 | . 21 36 133 Missed 49 | . 7 7 35 Damage Taken 2010 | . 185 621 1204 Core 514 | . . 105 409 Absorbed by Shields 286 | . . . 286 Core Remaining (%) 79 | 100 . 58 . Volleys Fired 58 | 8 11 19 20 Largest 2 | 2 2 2 2 Hottest 90 | 90 90 90 63 Shots Fired 98 | 16 22 29 31 Gun 54 | 16 22 16 . Cannon . | . . . . Launcher 44 | . . 13 31 Special . | . . . . Kinetic . | . . . . Thermal 26 | 8 11 7 . Explosive 44 | . . 13 31 Electromagnetic 28 | 8 11 9 . Robot Hit Streak 12 | 4 12 4 5 Robot Miss Streak 8 | 2 1 8 5 Penetration Max . | . . . . Secondary Targets 1 | . . 1 . Max Gunslinging Chain 1 | . . 1 . Shots Hit Robots 48 | 9 16 10 13 Core Hits 56 | 4 7 21 24 Critical Kills . | . . . . Critical Parts Destroyed . | . . . . Critical Strikes 3 | 2 1 . . Burn 3 | 2 1 . . Melee Attacks . | . . . . Impact . | . . . . Slashing . | . . . . Piercing . | . . . . Sneak Attacks . | . . . . Combat Hostiles . | . . . . Follow-up Attacks . | . . . . Damage Inflicted 2321 | 110 202 734 1275 Guns 408 | 110 202 96 . Cannons . | . . . . Explosions 1913 | . . 638 1275 Melee . | . . . . Ramming . | . . . . Kinetic . | . . . . Thermal 189 | 37 101 51 . Explosive 1913 | . . 638 1275 Electromagnetic 219 | 73 101 45 . Impact . | . . . . Slashing . | . . . . Piercing . | . . . . Highest Corruption . | . . . . Average Corruption . | . . . . Corruption Purged . | . . . . Corruption Blocked . | . . . . Overload Shots . | . . . . Overflow Damage 45 | . . 31 14 Projectiles . | . . . . Explosions 45 | . . 31 14 Melee . | . . . . Knockbacks . | . . . . Impact . | . . . . Kinetic . | . . . . Secondary . | . . . . Self-Inflicted Damage 171 | . . 95 76 Shots 8 | . . 4 4 Rammed . | . . . . Targets Rammed . | . . . . Kicked . | . . . . Crushed . | . . . . Highest Temperature 177 | 90 177 134 31 Average Temperature 48 | 43 76 50 8 Received Heat Transfer 623 | . 102 60 461 Siege Activations . | . . . . Robots Corrupted . | . . . . Combat Hostiles . | . . . . Parts Fried . | . . . . Impact Corruptions . | . . . . Robots Melted . | . . . . Combat Hostiles . | . . . . Parts Melted . | . . . . Heat Transferred 777 | 259 370 148 . Parts Sabotaged . | . . . . Parts Stolen . | . . . . Parts Stripped . | . . . . Power Chain Reactions . | . . . . Alert | -11 -10 -10 -9 ------- Run | Yrd Mat Min Mat Peak Influence 488 | 15 109 96 488 Initial 42 | . 9 42 37 Average 128 | 6 37 39 269 Maximum Alert Level 2 | . . . 2 Low Security (%) 69 | 100 100 100 24 Level 1 27 | . . . 70 Level 2 2 | . . . 5 Level 3 . | . . . . Level 4 . | . . . . Level 5 . | . . . . High Security . | . . . . Max Security . | . . . . Squads Dispatched 1 | . . . 1 Investigation . | . . . . Extermination . | . . . . Reinforcement 1 | . . . 1 Assault . | . . . . Garrison . | . . . . Intercept . | . . . . Searches Triggered . | . . . . Construction Impeded . | . . . . Haulers Reinforced . | . . . . Active Scanning Responses . | . . . . Cargo Convoy Interrupts . | . . . . Stealth | -11 -10 -10 -9 --------- Run | Yrd Mat Min Mat Distress Signals 3 | . . . 3 Communications Jammed . | . . . . Distress Signals . | . . . . Times Spotted 39 | . 4 16 19 Peak Tracking Total 5 | . 2 5 4 Tactical Retreats 4 | . 1 3 . Traps | -11 -10 -10 -9 ------- Run | Yrd Mat Min Mat Traps Triggered . | . . . . Indirectly . | . . . . Trap Hack Attempts . | . . . . Triggered . | . . . . Disarmed . | . . . . Reprogrammed . | . . . . Reused . | . . . . Traps Extracted . | . . . . Installed . | . . . . Triggered . | . . . . Machines | -11 -10 -10 -9 ---------- Run | Yrd Mat Min Mat Machines Disabled 5 | . . . 5 Max in Single Turn 2 | . . . 2 Machines Repaired . | . . . . Machines Dismantled . | . . . . Machines Sabotaged . | . . . . Overloaded Fab Kills . | . . . . Hacking | -11 -10 -10 -9 --------- Run | Yrd Mat Min Mat Machines Accessed 1 | . 1 . . Terminals 1 | . 1 . . Fabricators . | . . . . Repair Stations . | . . . . Recycling Units . | . . . . Scanalyzers . | . . . . Garrison Access . | . . . . Total Hacks 2 | . 2 . . Successful 1 | . 1 . . Failed 1 | . 1 . . Catastrophic . | . . . . Database Lockouts . | . . . . Manual . | . . . . Terminals 2 | . 2 . . Fabricators . | . . . . Repair Stations . | . . . . Recycling Units . | . . . . Scanalyzers . | . . . . Garrison Access . | . . . . Terminal Hacks 1 | . 1 . . Dispatch Records 1 | . 1 . . Fabricator Hacks . | . . . . Repair Station Hacks . | . . . . Recycling Unit Hacks . | . . . . Scanalyzer . | . . . . Garrison Access Hacks . | . . . . Unauthorized Hacks . | . . . . Terminals . | . . . . Fabricators . | . . . . Repair Stations . | . . . . Recycling Units . | . . . . Scanalyzers . | . . . . Garrison Access . | . . . . Data Cores Recovered . | . . . . Used . | . . . . Hacking Detections 1 | . 1 . . Full Trace Events . | . . . . Feedback Events . | . . . . Feedback Blocked . | . . . . Robot Schematics Acquired . | . . . . Robots Built . | . . . . Authchips . | . . . . Time . | . . . . Total Robot Build Rating . | . . . . Part Schematics Acquired . | . . . . Parts Built . | . . . . Authchips . | . . . . Time . | . . . . Total Part Build Rating . | . . . . Parts Repaired . | . . . . Time . | . . . . Parts Recycled . | . . . . Recycled Matter . | . . . . Retrieved Matter . | . . . . Retrieved Components . | . . . . Parts Scanalyzed . | . . . . Part Schematics Acquired . | . . . . Parts Damaged . | . . . . Bothacking | -11 -10 -10 -9 ------------ Run | Yrd Mat Min Mat Used RIF Installer . | . . . . Robots Hacked . | . . . . Non-combat . | . . . . Combat . | . . . . Robot Hacks Applied . | . . . . Relay Couplers Released . | . . . . Fabnet Peak Effective % . | . . . . Robots Rewired . | . . . . Allies Hacked . | . . . . Hacks Repelled . | . . . . Allies | -11 -10 -10 -9 -------- Run | Yrd Mat Min Mat Total Allies . | . . . . Largest Group . | . . . . Highest-Rated Group . | . . . . Highest-Rated Ally . | . . . . Total Orders . | . . . . Ally Attacks . | . . . . Total Damage . | . . . . Kills . | . . . . Allies Corrupted . | . . . . Allies Melted . | . . . . Intel | -11 -10 -10 -9 ------- Run | Yrd Mat Min Mat Robot Analysis Total . | . . . . Derelict Logs Recovered 1 | . . 1 . Drone Launches . | . . . . Drone Recoveries . | . . . . Exploration | -11 -10 -10 -9 ------------- Run | Yrd Mat Min Mat Turns Passed 1639 | 114 326 550 649 Spaces Moved 698 | 61 174 287 176 Core 28 | 23 . . 5 Treads 384 | 38 174 172 . Legs 159 | . . . 159 Wheels . | . . . . Hover 127 | . . 115 12 Flight . | . . . . Fastest Speed 50 | 50 160 147 147 Average Speed 189 | 120 160 158 292 Slowest Speed 1550 | 160 160 240 1550 Overloaded Moves . | . . . . Propulsion Burnouts . | . . . . Robots Hopped . | . . . . Cave-ins Triggered . | . . . . Exploration Rate (%) 28 | 5 29 55 24 Regions Visited 3 Branch Regions 1 Pre-discovered Areas 1 | . . 1 . Known Exits Taken . | . . . . Unknown Exits Taken 3 | 1 1 1 . Scrap Searched . | . . . . Spaces Dug . | . . . . Terrain Destroyed 173 | . . 84 89 Melee . | . . . . Projectile . | . . . . AOE 173 | . . 84 89 Terrain Rammed . | . . . . Walls Destroyed . | . . . . Machines Disabled . | . . . . Actions | -11 -10 -10 -9 --------- Run | Yrd Mat Min Mat Total 920 | 84 200 353 283 Wait 83 | 3 3 27 50 Move 695 | 60 173 286 176 Hop . | . . . . Pick Up 38 | 6 8 7 17 Fast Attach 2 | 2 . . . Attach 15 | 5 . 6 4 Detach 3 | . . 2 1 Swap 12 | . 2 4 6 Drop 14 | . 3 2 9 Fire 58 | 8 11 19 20 Melee . | . . . . Ram . | . . . . Kick . | . . . . Crush . | . . . . Escape Stasis . | . . . . Rewire . | . . . . Trap . | . . . . Miscellaneous . | . . . . Route ------- -11/Scrapyard -10/Materials -10/Mines -9/Materials (discovered 1 exit: Mat) History --------- Turn | Location | Event 20 | -11/Scrapyard | Discovered new exit (range 12) 115 | -11/Scrapyard | Entered Materials 307 | -10/Materials | Build established: Mutant 398 | -10/Materials | Discovered new exit (range 15) 441 | -10/Materials | Entered Mines 448 | -10/Mines | Met a Derelict bent on vengeance 455 | -10/Mines | Received a Rocket Launcher from a helpful Derelict 687 | -10/Mines | Learned location of 1 exit from Materials 691 | -10/Mines | Assembled infested the area 696 | -10/Mines | Assisted by a Guerilla fighting off Assembled 793 | -10/Mines | Lost 4 parts (1p1n2w) 984 | -10/Mines | Discovered new exit (range 5) 985 | -10/Mines | Learned location of Storage (-8) 991 | -10/Mines | Entered Materials 991 | -9/Materials | Evolved 2 slots: Propulsion x1, Utility x1 992 | -9/Materials | Identified exit to Materials 1592 | -9/Materials | Core integrity fell below 50% 1631 | -9/Materials | Core integrity fell below 20% 1636 | -9/Materials | Lost 6 parts (1p3n1u1w) 1640 | -9/Materials | Destroyed by Y-45 Defender with Beam Rifle Last Messages --------------- U-05 Engineer lays Concrete. The unstable cave ceiling collapses. U-05 Engineer lays Concrete. The unstable cave ceiling collapses. U-05 Engineer lays Concrete. The unstable cave ceiling collapses. U-05 Engineer builds a Wall. Shield Generator destroyed. Imp. Aluminum Leg destroyed. Critical hit (Burn: +27). Critical hit (Destroy). Imp. Assault Rifle destroyed. ALERT: Hostiles spotted, dispatching reinforcements to Terminal M003. Imp. Aluminum Leg destroyed. Critical hit (Burn: +27). Imp. Aluminum Leg destroyed. Fission Core destroyed. Shield Generator destroyed. Critical hit (Burn: +37). Map ----- +----------------------------------------------------+ | ????????????????????????????? | | ????????????????????????????? | | ????????????????????????????? | | ????????????????????????????? | | ????????????????????????????? | | ????????????????????????????? | | ????????????????????????????? | | ????????????????????????????? | | ????????????????????????????? | | ????????????????????????????? | | ????????????????????????????? | | ????????????????????????????? | | ????????????????????????????? | | ????????????????????????????? | | ????????????????????????????? | | ???????????????###+##???????? | | ???????????##### ???????? | | ???????????? ???????? | | ????????????? ???????? | | ?????????????? ???????? | | ???????????????# ???????? | | ????????????????# ######### | | ????????????????# # # | | ????????????????# # # | | ????????????????# Y # | | ????????????????# # @ [# | | ????????????????# # # | | ????????????????# # # | | ????????######### # # | | ????????? # # # | | ?????????"""" # # # | | ?????????"""" # # # | | ????????""""" # # # | | ????????""""" ! + ####/#### | | ????????""""" # #??#Y???? | | ???????#""""" ### #??# ???? | | ???????#""""" ! #?# #??# ???? | | ???????# #?# #??# ???? | | ???????#######/##?# #??? ???? | | ?????????????# #??? #??? ???? | | ?????????????# #??? #??? ???? | | ???########??# #???+#???????? | | ???# """ #### #????????????? | | ???# "T" / ###??????????? | | ???# " " # #??????????? | | ???# # # ?????????? | | ???# + + ""???????? | | ???#[ [ # # ""???????? | | ??#########+# #?? ??????? | | ### # #??? ??????? | +----------------------------------------------------+ Best States ------------- Heat Dissipation 35 Energy Generation 18 Energy Capacity 310 Matter Stores 300 Matter Capacity 300 Sight Range 16 Terrain Scan Range 16 Terrain Scan Density 10 Evasion (%) 50 Armor Integrity Analysis 30 Recoil Reduction 2 Item Schematics ----------------- None Robot Schematics ------------------ None Fabricated ------------ Nothing Alien Tech Used ----------------- None Achievements -------------- I Survived The Infestation Challenges ------------ None Game ------ Seed BiocellPortablePlatform Manual? 0 Play Time 00:23:39 Cumulative 3.0 hours Start 2024.12.21 @ 15:03:33 End 2024.12.21 @ 15:27:38 Sessions 1 Manual Loads 0 Difficulty Rogue Special Mode None Game No. 9 Rogue 6 Adventurer 3 Explorer 0 Win Type - Total 0 Types 0/0/0/0/0/0/0/0/0 Lore% 3 Gallery% 8 Achievement% 8 Wizard Run 0 Options --------- Layout 1 ASCII 0 Keyboard 0 Movement Mouse Keybinds 0 Fullscreen 1 Font 24/Smallcaps Map View 50x35 Zoom Use 0% Tactical HUD 0 Map Filters NONE Filters NONE Steam 1 RUN: be8537f5-6afa-4332-947a-d10e3a694220